[Event "Titled Tuesday Blitz March 08 Early 2022"]
[White "Urbina Quiroz, Edwin"]
[Black "Flis, Pawel"]
[WhiteFideId "6500650"]
[BlackFideId "1112864"]
[WhiteElo "2152"]
[BlackElo "1735"]
[Result "0-1"]
[Round "11"]
[TimeControl "180+1"]
[Date "2022.03.09"]
[WhiteClock "0:01:38"]
[BlackClock "0:01:17"]

1. g3 {[%clk 0:02:17]}  Nf6 {[%clk 0:02:58]} 2. d3 {[%clk 0:02:18]}  g6 {[%clk 0:02:58]} 3. Bg2 {[%clk 0:02:19]}  Bg7 {[%clk 0:02:59]} 4. Nf3 {[%clk 0:02:20]}  O-O {[%clk 0:02:59]} 5. O-O {[%clk 0:02:20]}  d6 {[%clk 0:02:58]} 6. c4 {[%clk 0:02:21]}  e5 {[%clk 0:02:57]} 7. Nc3 {[%clk 0:02:22]}  Nc6 {[%clk 0:02:56]} 8. Bd2 {[%clk 0:02:23]}  h6 {[%clk 0:02:55]} 9. Ne1 {[%clk 0:02:24]}  Be6 {[%clk 0:02:54]} 10. Nc2 {[%clk 0:02:24]}  Qd7 {[%clk 0:02:53]} 11. Ne3 {[%clk 0:02:25]}  Bh3 {[%clk 0:02:51]} 12. Ncd5 {[%clk 0:02:25]}  Bxg2 {[%clk 0:02:50]} 13. Kxg2 {[%clk 0:02:25]}  Nd4 {[%clk 0:02:46]} 14. Nxf6+ {[%clk 0:02:23]}  Bxf6 {[%clk 0:02:44]} 15. Nd5 {[%clk 0:02:22]}  Bg7 {[%clk 0:02:36]} 16. e3 {[%clk 0:02:22]}  Ne6 {[%clk 0:02:36]} 17. Rb1 {[%clk 0:02:18]}  c6 {[%clk 0:02:36]} 18. Nc3 {[%clk 0:02:18]}  Ng5 {[%clk 0:02:27]} 19. f4 {[%clk 0:02:06]}  Qh3+ {[%clk 0:02:24]} 20. Kh1 {[%clk 0:02:06]}  exf4 {[%clk 0:02:21]} 21. gxf4 {[%clk 0:02:07]}  Ne6 {[%clk 0:02:14]} 22. Rf3 {[%clk 0:02:07]}  Qh5 {[%clk 0:02:03]} 23. Qe2 {[%clk 0:02:07]}  Nc5 {[%clk 0:01:56]} 24. Rg1 {[%clk 0:02:06]}  Nxd3 {[%clk 0:01:47]} 25. f5 {[%clk 0:02:04]}  Ne5 {[%clk 0:01:30]} 26. fxg6 {[%clk 0:01:45]}  Qxf3+ {[%clk 0:01:24]} 27. Qxf3 {[%clk 0:01:43]}  Nxf3 {[%clk 0:01:24]} 28. gxf7+ {[%clk 0:01:43]}  Rxf7 {[%clk 0:01:21]} 29. Rg2 {[%clk 0:01:43]}  Ne5 {[%clk 0:01:17]} 30. Ne4 {[%clk 0:01:38]} 0-1


[Site "https://www.chess.com"]

[Event "Titled Tuesday Blitz March 08 Early 2022"]
[White "Vifleemskaia, Svetlana"]
[Black "Van den Dikkenberg, Erik"]
[WhiteFideId "4129490"]
[BlackFideId "1005880"]
[WhiteElo "1901"]
[BlackElo "2118"]
[Result "0-1"]
[Round "11"]
[TimeControl "180+1"]
[Date "2022.03.09"]
[WhiteClock "0:00:03"]
[BlackClock "0:00:05"]

1. d4 {[%clk 0:02:26]}  Nf6 {[%clk 0:02:59]} 2. c4 {[%clk 0:02:24]}  g6 {[%clk 0:02:59]} 3. Nc3 {[%clk 0:02:24]}  Bg7 {[%clk 0:02:59]} 4. e4 {[%clk 0:02:25]}  d6 {[%clk 0:03:00]} 5. Nge2 {[%clk 0:02:25]}  O-O {[%clk 0:03:00]} 6. Ng3 {[%clk 0:02:26]}  a6 {[%clk 0:02:59]} 7. a4 {[%clk 0:02:24]}  c5 {[%clk 0:02:56]} 8. d5 {[%clk 0:02:24]}  Qa5 {[%clk 0:02:54]} 9. Be2 {[%clk 0:02:18]}  Nbd7 {[%clk 0:02:45]} 10. Bf4 {[%clk 0:02:14]}  Re8 {[%clk 0:02:34]} 11. O-O {[%clk 0:02:12]}  Ne5 {[%clk 0:02:32]} 12. Bd2 {[%clk 0:02:00]}  h5 {[%clk 0:01:46]} 13. f4 {[%clk 0:01:55]}  Neg4 {[%clk 0:01:32]} 14. h3 {[%clk 0:01:53]}  Nh6 {[%clk 0:01:31]} 15. f5 {[%clk 0:01:48]}  h4 {[%clk 0:01:23]} 16. Nh1 {[%clk 0:01:46]}  gxf5 {[%clk 0:01:13]} 17. Rf4 {[%clk 0:01:27]}  Kf8 {[%clk 0:00:42]} 18. Rxh4 {[%clk 0:01:26]}  Nhg8 {[%clk 0:00:41]} 19. Ng3 {[%clk 0:01:15]}  fxe4 {[%clk 0:00:36]} 20. Ngxe4 {[%clk 0:01:06]}  Bf5 {[%clk 0:00:34]} 21. Rf4 {[%clk 0:01:03]}  Bxe4 {[%clk 0:00:32]} 22. Nxe4 {[%clk 0:01:02]}  Qb6 {[%clk 0:00:31]} 23. Ng5 {[%clk 0:00:32]}  Bh6 {[%clk 0:00:22]} 24. Rh4 {[%clk 0:00:20]}  Bxg5 {[%clk 0:00:17]} 25. Bxg5 {[%clk 0:00:20]}  Qxb2 {[%clk 0:00:13]} 26. Rb1 {[%clk 0:00:20]}  Qe5 {[%clk 0:00:12]} 27. Bf4 {[%clk 0:00:19]}  Qd4+ {[%clk 0:00:10]} 28. Qxd4 {[%clk 0:00:16]}  cxd4 {[%clk 0:00:10]} 29. Rxb7 {[%clk 0:00:17]}  Rab8 {[%clk 0:00:10]} 30. Ra7 {[%clk 0:00:13]}  Rb2 {[%clk 0:00:09]} 31. Bd3 {[%clk 0:00:12]}  Reb8 {[%clk 0:00:08]} 32. Rxa6 {[%clk 0:00:10]}  R8b3 {[%clk 0:00:08]} 33. Bf5 {[%clk 0:00:08]}  Kg7 {[%clk 0:00:06]} 34. Rc6 {[%clk 0:00:04]}  Ra3 {[%clk 0:00:06]} 35. Rc7 {[%clk 0:00:03]}  Raa2 {[%clk 0:00:05]} 0-1


[Site "https://www.chess.com"]

[Event "Titled Tuesday Blitz March 08 Early 2022"]
[White "Vogel, Roven"]
[Black "Orlov, Georgi"]
[WhiteFideId "12908088"]
[BlackFideId "2011271"]
[WhiteElo "2516"]
[BlackElo "2548"]
[Result "1-0"]
[Round "11"]
[TimeControl "180+1"]
[Date "2022.03.09"]
[WhiteClock "0:01:20"]
[BlackClock "0:01:22"]

1. e4 {[%clk 0:02:59]}  d6 {[%clk 0:02:57]} 2. d4 {[%clk 0:02:59]}  Nf6 {[%clk 0:02:57]} 3. Nc3 {[%clk 0:02:59]}  c6 {[%clk 0:02:58]} 4. Nf3 {[%clk 0:02:58]}  Bg4 {[%clk 0:02:57]} 5. h3 {[%clk 0:02:56]}  Bh5 {[%clk 0:02:57]} 6. g4 {[%clk 0:02:54]}  Bg6 {[%clk 0:02:57]} 7. Bd3 {[%clk 0:02:55]}  e6 {[%clk 0:02:57]} 8. Qe2 {[%clk 0:02:50]}  d5 {[%clk 0:02:54]} 9. e5 {[%clk 0:02:37]}  Nfd7 {[%clk 0:02:53]} 10. Bf4 {[%clk 0:02:26]}  c5 {[%clk 0:02:52]} 11. Nxd5 {[%clk 0:02:14]}  Bxd3 {[%clk 0:02:46]} 12. cxd3 {[%clk 0:02:13]}  exd5 {[%clk 0:02:45]} 13. Ng5 {[%clk 0:02:11]}  Be7 {[%clk 0:02:40]} 14. e6 {[%clk 0:02:00]}  fxe6 {[%clk 0:02:32]} 15. Nxe6 {[%clk 0:01:59]}  Qa5+ {[%clk 0:02:27]} 16. Bd2 {[%clk 0:01:59]}  Qb6 {[%clk 0:02:26]} 17. Nxg7+ {[%clk 0:01:59]}  Kf7 {[%clk 0:02:27]} 18. Nf5 {[%clk 0:01:53]}  Re8 {[%clk 0:02:20]} 19. Qf3 {[%clk 0:01:49]}  Bf6+ {[%clk 0:02:08]} 20. Kf1 {[%clk 0:01:47]}  Kg8 {[%clk 0:01:43]} 21. g5 {[%clk 0:01:40]}  Rf8 {[%clk 0:01:36]} 22. gxf6 {[%clk 0:01:38]}  Qxf6 {[%clk 0:01:35]} 23. Bh6 {[%clk 0:01:23]}  Qxf5 {[%clk 0:01:31]} 24. Rg1+ {[%clk 0:01:21]}  Qg6 {[%clk 0:01:23]} 25. Rxg6+ {[%clk 0:01:20]}  hxg6 {[%clk 0:01:22]} 26. Bxf8 {[%clk 0:01:20]} 1-0


[Site "https://www.chess.com"]

[Event "Titled Tuesday Blitz March 08 Early 2022"]
[White "Volkov, Maksim"]
[Black "Alonso Rosell, Alvar"]
[WhiteFideId "54123070"]
[BlackFideId "2270544"]
[WhiteElo "2081"]
[BlackElo "2474"]
[Result "1-0"]
[Round "11"]
[TimeControl "180+1"]
[Date "2022.03.08"]
[WhiteClock "0:00:25"]
[BlackClock "0:00:20"]

1. d4 {[%clk 0:03:00]}  Nf6 {[%clk 0:02:57]} 2. c4 {[%clk 0:03:00]}  e6 {[%clk 0:02:57]} 3. g3 {[%clk 0:03:00]}  d5 {[%clk 0:02:57]} 4. Nf3 {[%clk 0:03:01]}  dxc4 {[%clk 0:02:57]} 5. Bg2 {[%clk 0:03:00]}  c6 {[%clk 0:02:58]} 6. O-O {[%clk 0:03:00]}  b5 {[%clk 0:02:58]} 7. Ne5 {[%clk 0:02:56]}  Bb7 {[%clk 0:02:57]} 8. a4 {[%clk 0:02:57]}  a6 {[%clk 0:02:53]} 9. Nc3 {[%clk 0:02:35]}  Be7 {[%clk 0:02:06]} 10. axb5 {[%clk 0:02:30]}  axb5 {[%clk 0:02:05]} 11. Rxa8 {[%clk 0:02:30]}  Bxa8 {[%clk 0:02:06]} 12. Nxb5 {[%clk 0:02:31]}  cxb5 {[%clk 0:02:07]} 13. Bxa8 {[%clk 0:02:31]}  O-O {[%clk 0:02:07]} 14. Bg2 {[%clk 0:02:25]}  Nfd7 {[%clk 0:01:58]} 15. Nxd7 {[%clk 0:02:14]}  Qxd7 {[%clk 0:01:56]} 16. Be3 {[%clk 0:02:05]}  Nc6 {[%clk 0:01:53]} 17. Qd2 {[%clk 0:01:33]}  Rd8 {[%clk 0:01:42]} 18. Rd1 {[%clk 0:01:33]}  Bf6 {[%clk 0:01:39]} 19. d5 {[%clk 0:01:28]}  exd5 {[%clk 0:01:31]} 20. Bxd5 {[%clk 0:01:23]}  Nd4 {[%clk 0:01:25]} 21. Bxd4 {[%clk 0:01:00]}  Qxd5 {[%clk 0:01:23]} 22. e3 {[%clk 0:01:00]}  Qf3 {[%clk 0:01:18]} 23. Qc2 {[%clk 0:00:59]}  h5 {[%clk 0:01:14]} 24. h4 {[%clk 0:00:57]}  Bxh4 {[%clk 0:00:53]} 25. gxh4 {[%clk 0:00:35]}  Qh3 {[%clk 0:00:41]} 26. f4 {[%clk 0:00:33]}  Qg4+ {[%clk 0:00:32]} 27. Kf1 {[%clk 0:00:31]}  b4 {[%clk 0:00:22]} 28. Qe2 {[%clk 0:00:28]}  Qh3+ {[%clk 0:00:21]} 29. Qg2 {[%clk 0:00:25]}  Qxh4 {[%clk 0:00:20]} 30. Qxg7# {[%clk 0:00:25]} 1-0


[Site "https://www.chess.com"]

[Event "Titled Tuesday Blitz March 08 Early 2022"]
[White "Wagner, Dennis"]
[Black "Kamsky, Gata"]
[WhiteFideId "24650684"]
[BlackFideId "2000024"]
[WhiteElo "2355"]
[BlackElo "2645"]
[Result "1/2-1/2"]
[Round "11"]
[TimeControl "180+1"]
[Date "2022.03.08"]
[WhiteClock "0:00:09"]
[BlackClock "0:00:10"]

1. d4 {[%clk 0:03:00]}  Nf6 {[%clk 0:02:58]} 2. c4 {[%clk 0:02:59]}  g6 {[%clk 0:02:57]} 3. h4 {[%clk 0:02:55]}  c6 {[%clk 0:02:38]} 4. h5 {[%clk 0:02:49]}  Nxh5 {[%clk 0:02:37]} 5. e4 {[%clk 0:02:49]}  d5 {[%clk 0:02:35]} 6. e5 {[%clk 0:02:35]}  Ng7 {[%clk 0:02:31]} 7. Nc3 {[%clk 0:02:32]}  h5 {[%clk 0:02:29]} 8. Nh3 {[%clk 0:02:09]}  Bxh3 {[%clk 0:02:26]} 9. Rxh3 {[%clk 0:02:09]}  e6 {[%clk 0:02:26]} 10. g4 {[%clk 0:01:46]}  Nd7 {[%clk 0:02:25]} 11. Be3 {[%clk 0:01:45]}  Be7 {[%clk 0:02:15]} 12. Qf3 {[%clk 0:01:33]}  Qa5 {[%clk 0:01:58]} 13. O-O-O {[%clk 0:01:28]}  Rg8 {[%clk 0:01:44]} 14. Kb1 {[%clk 0:01:19]}  hxg4 {[%clk 0:01:42]} 15. Qxg4 {[%clk 0:01:16]}  Nf5 {[%clk 0:01:42]} 16. Rh7 {[%clk 0:01:12]}  Nf8 {[%clk 0:01:39]} 17. Rh3 {[%clk 0:01:05]}  O-O-O {[%clk 0:01:38]} 18. cxd5 {[%clk 0:00:59]}  cxd5 {[%clk 0:01:37]} 19. Nb5 {[%clk 0:00:53]}  Nxe3 {[%clk 0:01:23]} 20. Rxe3 {[%clk 0:00:48]}  a6 {[%clk 0:01:18]} 21. Rc3+ {[%clk 0:00:21]}  Kb8 {[%clk 0:01:18]} 22. Qf3 {[%clk 0:00:14]}  axb5 {[%clk 0:00:57]} 23. Qxf7 {[%clk 0:00:14]}  Bb4 {[%clk 0:00:58]} 24. Rb3 {[%clk 0:00:15]}  Rh8 {[%clk 0:00:51]} 25. a3 {[%clk 0:00:14]}  Rh7 {[%clk 0:00:44]} 26. axb4 {[%clk 0:00:09]}  Rxf7 {[%clk 0:00:38]} 27. bxa5 {[%clk 0:00:09]}  Rxf2 {[%clk 0:00:38]} 28. Bxb5 {[%clk 0:00:09]}  Ka7 {[%clk 0:00:30]} 29. Rc1 {[%clk 0:00:09]}  Rf7 {[%clk 0:00:29]} 30. Bd3 {[%clk 0:00:08]}  Rf4 {[%clk 0:00:17]} 31. Rc6 {[%clk 0:00:07]}  Rxd4 {[%clk 0:00:14]} 32. Rc7 {[%clk 0:00:06]}  Rb8 {[%clk 0:00:11]} 33. Bb5 {[%clk 0:00:05]}  g5 {[%clk 0:00:10]} 34. Rg7 {[%clk 0:00:05]}  g4 {[%clk 0:00:10]} 35. Ka2 {[%clk 0:00:06]}  Re4 {[%clk 0:00:09]} 36. Bd3 {[%clk 0:00:05]}  Rxe5 {[%clk 0:00:09]} 37. Rxg4 {[%clk 0:00:06]}  d4 {[%clk 0:00:09]} 38. Rxd4 {[%clk 0:00:06]}  Rxa5+ {[%clk 0:00:09]} 39. Kb1 {[%clk 0:00:06]}  e5 {[%clk 0:00:09]} 40. Rdb4 {[%clk 0:00:07]}  Nd7 {[%clk 0:00:09]} 41. Rb5 {[%clk 0:00:06]}  Rxb5 {[%clk 0:00:08]} 42. Rxb5 {[%clk 0:00:07]}  b6 {[%clk 0:00:08]} 43. Bf5 {[%clk 0:00:07]}  Nc5 {[%clk 0:00:08]} 44. b4 {[%clk 0:00:06]}  Rf8 {[%clk 0:00:08]} 45. bxc5 {[%clk 0:00:07]}  Rxf5 {[%clk 0:00:08]} 46. cxb6+ {[%clk 0:00:07]}  Kb7 {[%clk 0:00:08]} 47. Kc2 {[%clk 0:00:08]}  Rf6 {[%clk 0:00:09]} 48. Rxe5 {[%clk 0:00:07]}  Rxb6 {[%clk 0:00:09]} 49. Re3 {[%clk 0:00:08]}  Rc6+ {[%clk 0:00:10]} 50. Rc3 {[%clk 0:00:08]}  Rxc3+ {[%clk 0:00:10]} 51. Kxc3 {[%clk 0:00:09]} 1/2-1/2


[Site "https://www.chess.com"]

[Event "Titled Tuesday Blitz March 08 Early 2022"]
[White "Yandarbiev, Ruslan"]
[Black "Aldokhin, Ivan"]
[WhiteFideId "4115023"]
[BlackFideId "24115720"]
[WhiteElo "2102"]
[BlackElo "2231"]
[Result "1-0"]
[Round "11"]
[TimeControl "180+1"]
[Date "2022.03.09"]
[WhiteClock "0:00:09"]
[BlackClock "0:00:02"]

1. e4 {[%clk 0:02:52]}  c6 {[%clk 0:02:53]} 2. d4 {[%clk 0:02:51]}  d5 {[%clk 0:02:53]} 3. e5 {[%clk 0:02:51]}  c5 {[%clk 0:02:53]} 4. dxc5 {[%clk 0:02:51]}  a6 {[%clk 0:02:54]} 5. a3 {[%clk 0:02:46]}  Nc6 {[%clk 0:02:55]} 6. Nf3 {[%clk 0:02:45]}  Bg4 {[%clk 0:02:55]} 7. Bf4 {[%clk 0:02:36]}  e6 {[%clk 0:02:52]} 8. b4 {[%clk 0:02:36]}  Nge7 {[%clk 0:02:52]} 9. Nbd2 {[%clk 0:02:35]}  Ng6 {[%clk 0:02:51]} 10. Bg3 {[%clk 0:02:34]}  Ncxe5 {[%clk 0:02:47]} 11. Be2 {[%clk 0:02:34]}  Nc6 {[%clk 0:02:29]} 12. O-O {[%clk 0:02:25]}  Be7 {[%clk 0:02:29]} 13. c4 {[%clk 0:02:25]}  O-O {[%clk 0:02:14]} 14. h3 {[%clk 0:02:23]}  Bf5 {[%clk 0:02:10]} 15. cxd5 {[%clk 0:02:24]}  exd5 {[%clk 0:02:10]} 16. Nb3 {[%clk 0:02:23]}  Bf6 {[%clk 0:02:05]} 17. Nfd4 {[%clk 0:02:15]}  Be6 {[%clk 0:01:50]} 18. Ra2 {[%clk 0:02:02]}  Nge5 {[%clk 0:01:43]} 19. Rc2 {[%clk 0:01:48]}  Qc8 {[%clk 0:01:27]} 20. f4 {[%clk 0:01:46]}  Nc4 {[%clk 0:01:27]} 21. Rf3 {[%clk 0:01:19]}  Nxa3 {[%clk 0:01:15]} 22. Nxc6 {[%clk 0:01:14]}  bxc6 {[%clk 0:01:11]} 23. Ra2 {[%clk 0:00:59]}  Nb5 {[%clk 0:01:11]} 24. f5 {[%clk 0:00:56]}  Bxf5 {[%clk 0:01:10]} 25. Na5 {[%clk 0:00:54]}  Be4 {[%clk 0:01:08]} 26. Rxf6 {[%clk 0:00:53]}  gxf6 {[%clk 0:01:07]} 27. Bxb5 {[%clk 0:00:52]}  axb5 {[%clk 0:01:06]} 28. Rf2 {[%clk 0:00:48]}  Qe6 {[%clk 0:01:03]} 29. Qh5 {[%clk 0:00:44]}  Bg6 {[%clk 0:01:03]} 30. Qh4 {[%clk 0:00:44]}  Kg7 {[%clk 0:00:51]} 31. Bf4 {[%clk 0:00:43]}  h5 {[%clk 0:00:48]} 32. Bd6 {[%clk 0:00:32]}  Rfe8 {[%clk 0:00:46]} 33. Nxc6 {[%clk 0:00:32]}  Ra1+ {[%clk 0:00:18]} 34. Kh2 {[%clk 0:00:32]}  Qe1 {[%clk 0:00:18]} 35. Qxf6+ {[%clk 0:00:31]}  Kh7 {[%clk 0:00:17]} 36. Be5 {[%clk 0:00:20]}  Qg1+ {[%clk 0:00:13]} 37. Kg3 {[%clk 0:00:20]}  Ra3+ {[%clk 0:00:13]} 38. Kh4 {[%clk 0:00:20]}  Rxe5 {[%clk 0:00:08]} 39. Nxe5 {[%clk 0:00:21]}  Qa1 {[%clk 0:00:04]} 40. Qf4 {[%clk 0:00:12]}  Rb3 {[%clk 0:00:02]} 41. Nxf7 {[%clk 0:00:11]}  Qb2 {[%clk 0:00:01]} 42. Ng5+ {[%clk 0:00:09]}  Kg7 {[%clk 0:00:02]} 43. Rxb2 {[%clk 0:00:09]} 1-0


[Site "https://www.chess.com"]